[Event "4NCL Div 1 2024-25"]
[Site "England"]
[Date "2025.02.16"]
[Round "6.23"]
[White "Varney, Zoe"]
[Black "Hng, Mei-En Emmanuelle"]
[Result "1/2-1/2"]
[Annotator "NA"]
[ECO "B40"]
[WhiteElo "1996"]
[BlackElo "2135"]
[PlyCount "59"]
[EventDate "2024.11.23"]
[EventType "team-tourn"]
[EventCountry "ENG"]
[SourceTitle "playchess.com"]
[Source "ChessBase"]
[SourceQuality "1"]
[TimeControl "40/6000+30:3000+30"]

1. e4 {[%emt 0:10:03]} c5 {[%emt 0:10:11]} 2. Nf3 {[%emt 0:00:06]} e6 {[%emt 0:00:10]} 3. b3 {[%emt 0:00:06]} Nf6 {[%emt 0:10:56]} 4. e5 {[%emt 0:03:29]} Nd5 {[%emt 0:00:18]} 5. c4 {[%emt 0:00:56]} Nb6 {[%emt 0:04:53]} 6. Bb2 {[%emt 0:04:14]} Nc6 {[%emt 0:00:43]} 7. Nc3 {[%emt 0:03:29]} d5 {[%emt 0:02:08]} 8. exd6 {[%emt 0:05:54]} Bxd6 {[%emt 0:00:32]} 9. d4 {[%emt 0:09:25]} cxd4 {[%emt 0:16:26]} 10. Nxd4 {[%emt 0:01:40]} O-O {[%emt 0:02:09]} 11. Nxc6 {[%emt 0:07:02]} bxc6 {[%emt 0:00:13]} 12. g3 {[%emt 0:01:27]} Rb8 {[%emt 0:09:55]} 13. Qc2 {[%emt 0:06:19]} Qc7 {[%emt 0:08:48]} 14. Bg2 {[%emt 0:20:02]} f5 {[%emt 0:08:26]} 15. O-O-O {[%emt 0:09:43]} a5 {[%emt 0:04:47]} 16. Ne2 {[%emt 0:05:30]} c5 {[%emt 0:08:24]} 17. Qc3 {[%emt 0:07:47]} Rf7 {[%emt 0:09:08]} 18. Qxa5 {[%emt 0:04:18]} Bb7 {[%emt 0:00:11]} 19. Bxb7 {[%emt 0:01:00]} Qxb7 {[%emt 0:00:27]} 20. Qc3 {[%emt 0:03:00]} Be7 {[%emt 0:00:18]} 21. Nf4 {[%emt 0:02:11]} Bf6 {[%emt 0:04:35]} 22. Qc2 {[%emt 0:00:07]} e5 {[%emt 0:04:47]} 23. Nd5 {[%emt 0:00:09]} Nxd5 {[%emt 0:00:30]} 24. Rxd5 {[%emt 0:00:10]} Qa8 {[%emt 0:00:26]} 25. Kb1 {[%emt 0:01:36]} Ra7 {[%emt 0:00:07]} 26. Bc3 {[%emt 0:02:08]} Ra4 {[%emt 0:00:22]} 27. Ka1 {[%emt 0:01:15]} Ra3 {[%emt 0:01:22]} 28. Kb1 {[%emt 0:00:08]} Ra4 {[%emt 0:00:40]} 29. Ka1 {[%emt 0:00:03]} Ra3 {[%emt 0:00:01]} 30. Kb1 {[%emt 0:00:10]} 1/2-1/2

[Event "4NCL Div 1 2024-25"]
[Site "England"]
[Date "2025.02.16"]
[Round "6.24"]
[White "Regan, Natasha K"]
[Black "Ledger, Stephen C"]
[Result "0-1"]
[Annotator "TA"]
[ECO "A09"]
[WhiteElo "2035"]
[BlackElo "2013"]
[PlyCount "88"]
[EventDate "2024.11.23"]
[EventType "team-tourn"]
[EventCountry "ENG"]
[SourceTitle "playchess.com"]
[Source "ChessBase"]
[SourceQuality "1"]
[TimeControl "40/6000+30:3000+30"]

{[%evp 9,88,0,0,-52,-25,-9,-6,-10,-29,0,-26,0,0,0,0,-74,-62,-76,-79,-187,-172,-329,-327,-337,-232,-355,-342,-699,-699,-700,-693,-706,-698,-736,-577,-582,-574,-585,-581,-573,-558,-776,-773,-725,-358,-355,-350,-422,-347,-397,-398,-833,-488,-480,-477,-724,-714,-689,-460,-462,-364,-458,-454,-492,-485,-533,-506,-550,-550,-540,-542,-523,-516,-529,-518,-510,-410,-815,-465,-511,-502]} 1. Nf3 {[%emt 0:10:05]} d5 {[%emt 0:11:18]} 2. c4 {[%emt 0:00:14]} d4 {[%emt 0:00:44]} 3. b4 {[%emt 0:00:13]} f6 {[%emt 0:01:41]} 4. e3 {[%emt 0:00:49]} e5 {[%emt 0:01:13]} 5. c5 {[%emt 0:00:57]} a5 {[%emt 0:04:49]} 6. Qa4+ {[%emt 0:01:00] A09: Réti Opening: 1 Nf3 d5 2 c4.} (6. Nxe5 $11 fxe5 7. Qh5+ Ke7 8. Qxe5+ Be6 9. Bc4) 6... Bd7 {[%emt 0:02:07]} 7. b5 $1 {[%emt 0:00:45]} Bxc5 {[%emt 0:02:13]} 8. Bc4 {[%emt 0:00:48] Black must now prevent Bxg8. The position is equal.} Ne7 {[%emt 0:04:44]} 9. exd4 {[%emt 0:01:02]} exd4 {[%emt 0:01:31]} 10. Ba3 $1 {[%emt 0:01:15]} Na6 {[%emt 0:05:37]} 11. O-O {[%emt 0:01:38]} Nb4 {[%emt 0:03:50]} 12. Re1 {[%emt 0:01:58]} (12. d3 $11) 12... Bg4 $1 $17 {[%emt 0:05:15]} 13. Qb3 {[%emt 0:08:49][%cal Ob1c3] [#]} Qd6 $146 {[%emt 0:12:47] Black converts the advantage convincingly.} ({Predecessor:} 13... Qd7 14. Bf7+ Kf8 15. Bxb4 axb4 16. Bc4 d3 17. a3 Bxf3 18. gxf3 Qd4 19. Re3 Qxa1 20. Rxd3 bxa3 21. Kg2 Ng6 22. Rd7 Ne5 23. Rxc7 Qd4 {0-1 Perez Ponsa,F (2553)-Ramirez Alvarez,A (2568) PRO League Stage rapid 2018 (9)}) 14. Bf7+ {[%emt 0:05:43] [#]} (14. h3 $17 Bh5 15. Re6) 14... Kf8 $1 $19 {[%emt 0:04:13]} 15. Qc4 $2 {[%emt 0:23:08]} (15. Nh4) 15... Bxf3 {[%emt 0:05:30]} 16. gxf3 {[%emt 0:00:58]} b6 {[%emt 0:05:19]} 17. Bb2 {[%emt 0:13:26]} (17. Bxb4 $142 Bxb4 (17... axb4 $2 18. d3 $19) 18. Re4) 17... Rd8 {[%emt 0:10:08]} 18. Bh5 $2 {[%emt 0:12:59]} (18. a3 Nbd5 19. Bxd5 Qxd5 20. Qxd5 Nxd5 21. d3) 18... Qd5 {[%emt 0:03:00]} 19. Qxd5 {[%emt 0:03:41]} Nexd5 {[%emt 0:01:32]} 20. Na3 {[%emt 0:02:29] White is weak on the dark squares} Nd3 {[%emt 0:07:34]} 21. Nc4 {[%emt 0:04:21]} Nxe1 {[%emt 0:00:57]} 22. Rxe1 {[%emt 0:00:06]} Nf4 {[%emt 0:02:36]} 23. Bg4 {[%emt 0:00:42]} g6 {[%emt 0:02:43]} 24. Re4 {[%emt 0:05:08]} Nd3 {[%emt 0:01:06]} 25. Re6 {[%emt 0:00:45]} f5 {[%emt 0:03:54]} 26. Bh3 {[%emt 0:00:59]} Nxb2 {[%emt 0:00:50]} (26... Nf4 $142 27. Rc6 Nxh3+ 28. Kf1 Ke7 29. Rxc7+ Ke6 30. Rc6+ Kd5 31. Nxb6+ Bxb6 32. Rxb6 Rb8) 27. Nxb2 {[%emt 0:00:12]} Rd6 {[%emt 0:00:16]} 28. Re5 {[%emt 0:01:22]} Kf7 {[%emt 0:01:54]} 29. Nc4 {[%emt 0:00:54]} Re6 {[%emt 0:00:52]} 30. Rd5 $2 {[%emt 0:00:12]} (30. Bf1) 30... Rhe8 {[%emt 0:02:14]} 31. Bf1 {[%emt 0:03:03]} Re1 {[%emt 0:01:56]} 32. Rd7+ {[%emt 0:01:01]} (32. f4 $142) 32... R8e7 {[%emt 0:00:46]} 33. Rd8 {[%emt 0:00:19]} Rc1 {[%emt 0:00:50]} 34. Kg2 {[%emt 0:00:38]} Rc2 {[%emt 0:00:53]} 35. f4 {[%emt 0:01:19]} Kg7 {[%emt 0:00:20]} (35... Rxa2 36. Nxb6 Rxd2 (36... cxb6 $2 37. Bc4+ Kf6 38. Bxa2 $19) 37. Bc4+ Kg7 38. Nc8 $19) 36. a4 {[%emt 0:03:18]} Ra2 {[%emt 0:00:27]} 37. Ne5 {[%emt 0:00:27]} Bd6 {[%emt 0:00:34]} 38. Bc4 {[%emt 0:00:51]} Rxd2 {[%emt 0:00:19]} 39. Rg8+ {[%emt 0:00:15]} Kh6 {[%emt 0:00:27]} 40. Nf7+ {[%emt 0:00:27] [#]} Rxf7 $1 {[%emt 0:00:34]} 41. Bxf7 {[%emt 0:50:20]} Bxf4 {[%emt 0:50:32]} 42. Rc8 {[%emt 0:00:46]} Bd6 {[%emt 0:00:41] And now ...d3 would win.} 43. h4 {[%emt 0:00:18]} (43. Re8 $142) 43... Re2 {[%emt 0:00:00]} 44. Kf3 {[%emt 0:00:00]} Re4 {[%emt 0:00:00] Weighted Error Value: White=0.87/Black=0.41  Mistake:       	White=8     	---        Inaccurate:     	White=1     	Black=4      OK:         	White=11    	Black=16     Best:        	---       	Black=2      Strong:       	White=2     	Black=2} 0-1

[Event "4NCL Div 1 2024-25"]
[Site "England"]
[Date "2025.02.16"]
[Round "6.25"]
[White "Waldhausen Gordon, Frederick"]
[Black "Rendle, Thomas E"]
[Result "1/2-1/2"]
[Annotator "ChessBase"]
[ECO "D19"]
[WhiteElo "2361"]
[BlackElo "2383"]
[PlyCount "38"]
[EventDate "2024.11.23"]
[EventType "team-tourn"]
[EventCountry "ENG"]
[SourceTitle "playchess.com"]
[Source "ChessBase"]
[SourceQuality "1"]
[TimeControl "40/6000+30:3000+30"]

1. d4 {[%emt 0:10:01]} d5 {[%emt 0:10:05]} 2. c4 {[%emt 0:00:06]} c6 {[%emt 0:00:04]} 3. Nf3 {[%emt 0:00:20]} Nf6 {[%emt 0:00:13]} 4. Nc3 {[%emt 0:00:10]} dxc4 {[%emt 0:00:48]} 5. a4 {[%emt 0:00:16]} Bf5 {[%emt 0:00:14]} 6. e3 {[%emt 0:01:56]} e6 {[%emt 0:00:35]} 7. Bxc4 {[%emt 0:00:07]} Bb4 {[%emt 0:00:27]} 8. O-O {[%emt 0:00:28]} O-O {[%emt 0:00:16]} 9. Qe2 {[%emt 0:05:20]} Bg6 {[%emt 0:02:36]} 10. Ne5 {[%emt 0:05:03]} Nbd7 {[%emt 0:01:32]} 11. Nxg6 {[%emt 0:00:22]} hxg6 {[%emt 0:00:07]} 12. Rd1 {[%emt 0:02:55]} Qc7 {[%emt 0:02:20]} 13. f4 {[%emt 0:11:12]} Nb6 {[%emt 0:14:29]} 14. Bd3 {[%emt 0:06:29]} Rad8 {[%emt 0:13:47]} 15. Bd2 {[%emt 0:04:12]} Qe7 {[%emt 0:04:45]} 16. a5 {[%emt 0:08:45]} Nc8 {[%emt 0:15:02]} 17. Na4 {[%emt 0:03:19]} Bxd2 {[%emt 0:05:14]} 18. Rxd2 {[%emt 0:00:45]} Nd5 {[%emt 0:00:46]} 19. Qf2 {[%emt 0:11:57]} g5 {[%emt 0:04:32]} 1/2-1/2

[Event "4NCL Div 1 2024-25"]
[Site "England"]
[Date "2025.02.16"]
[Round "6.26"]
[White "Milson, Samuel A"]
[Black "Gourlay, Iain"]
[Result "1-0"]
[Annotator "ChessBase"]
[ECO "B30"]
[WhiteElo "2069"]
[BlackElo "2303"]
[PlyCount "143"]
[EventDate "2024.11.23"]
[EventType "team-tourn"]
[EventCountry "ENG"]
[SourceTitle "playchess.com"]
[Source "ChessBase"]
[SourceQuality "1"]
[TimeControl "40/6000+30:3000+30"]

1. e4 {[%emt 0:10:04]} c5 {[%emt 0:16:55]} 2. Nc3 {[%emt 0:00:16]} Nc6 {[%emt 0:00:23]} 3. Bb5 {[%emt 0:00:15]} Nd4 {[%emt 0:00:26]} 4. Nf3 {[%emt 0:00:18]} e6 {[%emt 0:01:34]} 5. O-O {[%emt 0:00:14]} a6 {[%emt 0:00:49]} 6. Bd3 {[%emt 0:00:23]} Nc6 {[%emt 0:02:23]} 7. a3 {[%emt 0:03:44]} g6 {[%emt 0:18:39]} 8. b3 {[%emt 0:11:09]} Bg7 {[%emt 0:00:39]} 9. Bb2 {[%emt 0:00:16]} Nge7 {[%emt 0:07:04]} 10. Re1 {[%emt 0:01:49]} O-O {[%emt 0:04:17]} 11. Qc1 {[%emt 0:08:38]} d6 {[%emt 0:04:34]} 12. Nd1 {[%emt 0:06:21]} e5 {[%emt 0:01:48]} 13. Ne3 {[%emt 0:01:10]} Nd4 {[%emt 0:06:38]} 14. Qd1 {[%emt 0:02:24]} Be6 {[%emt 0:18:52]} 15. Ng5 {[%emt 0:09:22]} Bd7 {[%emt 0:00:33]} 16. c3 {[%emt 0:08:28]} Ndc6 {[%emt 0:03:29]} 17. Nf3 {[%emt 0:06:06]} b5 {[%emt 0:05:17]} 18. a4 {[%emt 0:02:50]} Qb6 {[%emt 0:00:57]} 19. axb5 {[%emt 0:02:13]} axb5 {[%emt 0:00:06]} 20. Qe2 {[%emt 0:00:54]} Na5 {[%emt 0:01:10]} 21. Bc2 {[%emt 0:06:05]} Be6 {[%emt 0:00:36]} 22. b4 {[%emt 0:02:34]} cxb4 {[%emt 0:00:14]} 23. cxb4 {[%emt 0:00:07]} Nb3 {[%emt 0:01:14]} 24. Bxb3 {[%emt 0:03:25]} Bxb3 {[%emt 0:00:06]} 25. Qd3 {[%emt 0:02:23]} Ba2 {[%emt 0:01:41]} 26. Rec1 {[%emt 0:00:54]} Bh6 {[%emt 0:04:08]} 27. Ng4 {[%emt 0:02:59]} Bg7 {[%emt 0:00:04]} 28. Ne3 {[%emt 0:01:50]} Rfd8 {[%emt 0:00:27]} 29. Rc2 {[%emt 0:02:56]} Nc6 {[%emt 0:02:38]} 30. Bc3 {[%emt 0:00:50]} Be6 {[%emt 0:02:37]} 31. Rxa8 {[%emt 0:00:33]} Rxa8 {[%emt 0:00:10]} 32. Nd5 {[%emt 0:01:50]} Qb7 {[%emt 0:02:22]} 33. Bb2 {[%emt 0:01:58]} Ra7 {[%emt 0:02:17]} 34. Bc3 {[%emt 0:04:25]} h6 {[%emt 0:01:15]} 35. h3 {[%emt 0:00:33]} Qb8 {[%emt 0:00:43]} 36. Rc1 {[%emt 0:03:24]} Ne7 {[%emt 0:00:30]} 37. Nxe7+ {[%emt 0:01:05]} Rxe7 {[%emt 0:00:06]} 38. Ra1 {[%emt 0:00:07]} f5 {[%emt 0:00:47]} 39. Ra6 {[%emt 0:01:10]} fxe4 {[%emt 0:00:30]} 40. Qxe4 {[%emt 0:00:11]} Kh7 {[%emt 0:00:37]} 41. Qc6 {[%emt 0:51:48]} Bc4 {[%emt 0:26:22]} 42. Qxd6 {[%emt 0:00:00]} Qxd6 {[%emt 0:01:02]} 43. Rxd6 {[%emt 0:00:00]} e4 {[%emt 0:01:05]} 44. Bxg7 {[%emt 0:00:00]} Kxg7 {[%emt 0:08:04]} 45. Nd4 {[%emt 0:00:00]} Ra7 {[%emt 0:00:43]} 46. Rb6 {[%emt 0:00:00]} Ra1+ {[%emt 0:01:10]} 47. Kh2 {[%emt 0:00:00]} Rb1 {[%emt 0:00:50]} 48. Nxb5 {[%emt 0:00:00]} Rxb4 {[%emt 0:00:10]} 49. Rb7+ {[%emt 0:00:00]} Kf6 {[%emt 0:00:34]} 50. Nd6 {[%emt 0:00:00]} Rxb7 {[%emt 0:00:35]} 51. Nxb7 {[%emt 0:00:00]} Ke5 {[%emt 0:01:05]} 52. Nc5 {[%emt 0:00:00]} Bb5 {[%emt 0:05:36]} 53. Kg3 {[%emt 0:00:00]} Kd5 {[%emt 0:01:16]} 54. Nb3 {[%emt 0:00:00]} Kc4 {[%emt 0:01:50]} 55. Nc1 {[%emt 0:00:00]} Kd4 {[%emt 0:00:34]} 56. f3 {[%emt 0:00:00]} e3 {[%emt 0:03:52]} 57. dxe3+ {[%emt 0:00:00]} Kxe3 {[%emt 0:00:06]} 58. Nb3 {[%emt 0:00:00]} Bc4 {[%emt 0:00:44]} 59. Nc5 {[%emt 0:00:00]} Kd4 {[%emt 0:00:13]} 60. Ne4 {[%emt 0:00:00]} Ke5 {[%emt 0:00:16]} 61. Nd2 {[%emt 0:00:00]} Bd5 {[%emt 0:00:17]} 62. Kf2 {[%emt 0:00:00]} Kd4 {[%emt 0:00:47]} 63. h4 {[%emt 0:00:00]} g5 {[%emt 0:00:47]} 64. hxg5 {[%emt 0:00:00]} hxg5 {[%emt 0:00:06]} 65. Kg3 {[%emt 0:00:00]} Be6 {[%emt 0:03:12]} 66. Ne4 {[%emt 0:00:00]} g4 {[%emt 0:00:09]} 67. Ng5 {[%emt 0:00:00]} Bd7 {[%emt 0:00:29]} 68. f4 {[%emt 0:00:00]} Bc6 {[%emt 0:01:51]} 69. Nh7 {[%emt 0:00:00]} Ke3 {[%emt 0:00:56]} 70. f5 {[%emt 0:00:00]} Kd4 {[%emt 0:00:26]} 71. f6 {[%emt 0:00:00]} Bd5 {[%emt 0:00:06]} 72. Ng5 {[%emt 0:00:00]} 1-0

[Event "4NCL Div 1 2024-25"]
[Site "England"]
[Date "2025.02.16"]
[Round "6.27"]
[White "Olson, Hamish"]
[Black "Lentzos, Ioanis"]
[Result "1-0"]
[Annotator "ChessBase"]
[ECO "B10"]
[WhiteElo "2374"]
[BlackElo "2126"]
[PlyCount "71"]
[EventDate "2024.11.23"]
[EventType "team-tourn"]
[EventCountry "ENG"]
[SourceTitle "playchess.com"]
[Source "ChessBase"]
[SourceQuality "1"]
[TimeControl "40/6000+30:3000+30"]

1. e4 {[%emt 0:12:04]} c6 {[%emt 0:10:10]} 2. Nf3 {[%emt 0:00:18]} d5 {[%emt 0:00:04]} 3. d3 {[%emt 0:00:09]} dxe4 {[%emt 0:00:37]} 4. dxe4 {[%emt 0:00:09]} Qxd1+ {[%emt 0:00:10]} 5. Kxd1 {[%emt 0:00:07]} Nf6 {[%emt 0:00:12]} 6. Nbd2 {[%emt 0:01:28]} g6 {[%emt 0:01:04]} 7. Ne1 {[%emt 0:05:08]} h5 {[%emt 0:00:48]} 8. f3 {[%emt 0:06:35]} Bh6 {[%emt 0:05:28]} 9. h4 {[%emt 0:01:49]} Be6 {[%emt 0:07:35]} 10. c3 {[%emt 0:02:08]} Nbd7 {[%emt 0:01:10]} 11. Nd3 {[%emt 0:08:34]} O-O-O {[%emt 0:06:10]} 12. Kc2 {[%emt 0:00:44]} Ne8 {[%emt 0:06:00]} 13. Nb3 {[%emt 0:05:48]} Bxb3+ {[%emt 0:02:50]} 14. axb3 {[%emt 0:00:36]} Bxc1 {[%emt 0:00:17]} 15. Kxc1 {[%emt 0:03:10]} Kb8 {[%emt 0:02:17]} 16. Kc2 {[%emt 0:02:00]} e5 {[%emt 0:00:46]} 17. g3 {[%emt 0:01:19]} Nd6 {[%emt 0:03:09]} 18. Bh3 {[%emt 0:04:11]} f5 {[%emt 0:01:59]} 19. Rae1 {[%emt 0:07:08]} Rde8 {[%emt 0:01:42]} 20. Re3 {[%emt 0:02:47]} Kc7 {[%emt 0:18:49]} 21. Ra1 {[%emt 0:05:21]} Nf6 {[%emt 0:15:11]} 22. Rxa7 {[%emt 0:07:43]} fxe4 {[%emt 0:00:44]} 23. fxe4 {[%emt 0:00:18]} Nfxe4 {[%emt 0:02:48]} 24. Ra5 {[%emt 0:12:32]} Rhf8 {[%emt 0:01:39]} 25. Bg2 {[%emt 0:01:12]} b6 {[%emt 0:06:27]} 26. Ra7+ {[%emt 0:01:04]} Kb8 {[%emt 0:00:04]} 27. Ra1 {[%emt 0:02:11]} Nf6 {[%emt 0:01:42]} 28. Nxe5 {[%emt 0:01:40]} Rxe5 {[%emt 0:02:40]} 29. Rxe5 {[%emt 0:00:38]} Ng4 {[%emt 0:00:34]} 30. Re2 {[%emt 0:01:38]} Nf5 {[%emt 0:00:23]} 31. Bxc6 {[%emt 0:00:54]} Rf6 {[%emt 0:00:18]} 32. Ra8+ {[%emt 0:01:16]} Kc7 {[%emt 0:00:04]} 33. Bb5 {[%emt 0:02:19]} Nxg3 {[%emt 0:00:42]} 34. Rd2 {[%emt 0:02:08]} Ne5 {[%emt 0:02:30]} 35. Ra7+ {[%emt 0:00:36]} Kc8 {[%emt 0:00:18]} 36. Ba6+ {[%emt 0:00:18]} 1-0

[Event "4NCL Div 1 2024-25"]
[Site "England"]
[Date "2025.02.16"]
[Round "6.28"]
[White "Birtwistle, Nigel"]
[Black "Berry, Neil"]
[Result "0-1"]
[Annotator "ChessBase"]
[ECO "D02"]
[WhiteElo "2041"]
[BlackElo "2248"]
[PlyCount "64"]
[EventDate "2024.11.23"]
[EventType "team-tourn"]
[EventCountry "ENG"]
[SourceTitle "playchess.com"]
[Source "ChessBase"]
[SourceQuality "1"]
[TimeControl "40/6000+30:3000+30"]

1. d4 {[%emt 0:10:03]} d5 {[%emt 0:15:55]} 2. Nf3 {[%emt 0:00:21]} Nf6 {[%emt 0:00:26]} 3. g3 {[%emt 0:00:33]} c5 {[%emt 0:00:35]} 4. Bg2 {[%emt 0:00:36]} cxd4 {[%emt 0:01:19]} 5. O-O {[%emt 0:00:21]} Bd7 {[%emt 0:01:15]} 6. b3 {[%emt 0:02:40]} Nc6 {[%emt 0:17:56]} 7. Nxd4 {[%emt 0:00:42]} e5 {[%emt 0:01:04]} 8. Nxc6 {[%emt 0:02:42]} Bxc6 {[%emt 0:00:11]} 9. Bb2 {[%emt 0:03:37]} Bd6 {[%emt 0:01:18]} 10. Nd2 {[%emt 0:02:43]} O-O {[%emt 0:04:08]} 11. c4 {[%emt 0:06:12]} d4 {[%emt 0:02:10]} 12. Nf3 {[%emt 0:01:55]} Re8 {[%emt 0:01:58]} 13. Qc1 {[%emt 0:15:06]} Qe7 {[%emt 0:10:22]} 14. Rd1 {[%emt 0:06:34]} Rac8 {[%emt 0:03:11]} 15. Bh3 {[%emt 0:04:28]} Rcd8 {[%emt 0:04:17]} 16. Nh4 {[%emt 0:01:42]} Bc5 {[%emt 0:01:28]} 17. Nf5 {[%emt 0:12:05]} Qf8 {[%emt 0:00:45]} 18. Bg2 {[%emt 0:04:09]} Ne4 {[%emt 0:11:28]} 19. Qb1 {[%emt 0:08:24]} d3 {[%emt 0:10:39]} 20. e3 {[%emt 0:07:13]} g6 {[%emt 0:00:31]} 21. Nh4 {[%emt 0:00:55]} Nxf2 {[%emt 0:08:52]} 22. Kxf2 {[%emt 0:07:17]} Bxe3+ {[%emt 0:00:08]} 23. Kf1 {[%emt 0:02:41]} Qd6 {[%emt 0:00:50]} 24. Bxc6 {[%emt 0:01:56]} Qxc6 {[%emt 0:03:13]} 25. Rxd3 {[%emt 0:02:02]} Qf6+ {[%emt 0:02:17]} 26. Kg2 {[%emt 0:01:05]} Qf2+ {[%emt 0:00:08]} 27. Kh3 {[%emt 0:01:43]} Rxd3 {[%emt 0:00:29]} 28. Qxd3 {[%emt 0:00:31]} Qxb2 {[%emt 0:00:18]} 29. Qd7 {[%emt 0:00:52]} Qxa1 {[%emt 0:02:11]} 30. Qxe8+ {[%emt 0:00:04]} Kg7 {[%emt 0:00:04]} 31. Qb5 {[%emt 0:00:56]} Qf1+ {[%emt 0:00:20]} 32. Ng2 {[%emt 0:00:22]} Qf5+ {[%emt 0:00:18]} 0-1

[Event "4NCL Div 1 2024-25"]
[Site "England"]
[Date "2025.02.16"]
[Round "6.29"]
[White "Shafi, Declan"]
[Black "Bremner, Adam"]
[Result "1/2-1/2"]
[Annotator "ChessBase"]
[ECO "B13"]
[WhiteElo "2181"]
[BlackElo "2149"]
[PlyCount "99"]
[EventDate "2024.11.23"]
[EventType "team-tourn"]
[EventCountry "ENG"]
[SourceTitle "playchess.com"]
[Source "ChessBase"]
[SourceQuality "1"]
[TimeControl "40/6000+30:3000+30"]

1. e4 {[%emt 0:10:03]} c6 {[%emt 0:10:13]} 2. d4 {[%emt 0:00:06]} d5 {[%emt 0:00:04]} 3. exd5 {[%emt 0:00:05]} cxd5 {[%emt 0:00:03]} 4. Bd3 {[%emt 0:00:09]} Nc6 {[%emt 0:00:06]} 5. c3 {[%emt 0:00:04]} Nf6 {[%emt 0:01:10]} 6. h3 {[%emt 0:00:05]} g6 {[%emt 0:00:12]} 7. Nf3 {[%emt 0:00:04]} Bf5 {[%emt 0:00:26]} 8. O-O {[%emt 0:00:07]} Bg7 {[%emt 0:01:39]} 9. Re1 {[%emt 0:00:06]} O-O {[%emt 0:00:11]} 10. Bf1 {[%emt 0:00:06]} Ne4 {[%emt 0:02:46]} 11. Nbd2 {[%emt 0:03:17]} Re8 {[%emt 0:11:59]} 12. Nxe4 {[%emt 0:02:46]} Bxe4 {[%emt 0:01:41]} 13. Nd2 {[%emt 0:01:25]} Bf5 {[%emt 0:00:20]} 14. Nb3 {[%emt 0:00:13]} e5 {[%emt 0:09:26]} 15. dxe5 {[%emt 0:01:40]} Rxe5 {[%emt 0:08:21]} 16. Be3 {[%emt 0:02:49]} Na5 {[%emt 0:10:53]} 17. Nxa5 {[%emt 0:01:41]} Qxa5 {[%emt 0:03:33]} 18. Qb3 {[%emt 0:00:25]} b6 {[%emt 0:14:41]} 19. Red1 {[%emt 0:02:47]} Be6 {[%emt 0:04:09]} 20. Qc2 {[%emt 0:01:20]} Bf5 {[%emt 0:05:21]} 21. Qd2 {[%emt 0:02:09]} Qa4 {[%emt 0:06:04]} 22. Bd4 {[%emt 0:02:15]} Ree8 {[%emt 0:00:22]} 23. Bxg7 {[%emt 0:00:16]} Kxg7 {[%emt 0:00:05]} 24. Qxd5 {[%emt 0:05:27]} Rad8 {[%emt 0:02:43]} 25. Qb5 {[%emt 0:05:10]} Qxb5 {[%emt 0:06:38]} 26. Bxb5 {[%emt 0:00:06]} Rxd1+ {[%emt 0:00:05]} 27. Rxd1 {[%emt 0:00:07]} Re5 {[%emt 0:00:06]} 28. Bf1 {[%emt 0:02:33]} h5 {[%emt 0:01:37]} 29. g3 {[%emt 0:02:43]} g5 {[%emt 0:00:52]} 30. f3 {[%emt 0:01:58]} Be6 {[%emt 0:00:41]} 31. a3 {[%emt 0:01:30]} Bb3 {[%emt 0:01:15]} 32. Rd2 {[%emt 0:00:23]} Re1 {[%emt 0:00:51]} 33. Kf2 {[%emt 0:00:08]} Rc1 {[%emt 0:01:15]} 34. f4 {[%emt 0:03:57]} gxf4 {[%emt 0:00:58]} 35. gxf4 {[%emt 0:00:06]} Kf6 {[%emt 0:00:40]} 36. Be2 {[%emt 0:06:03]} h4 {[%emt 0:00:27]} 37. Bg4 {[%emt 0:01:10]} Bc4 {[%emt 0:01:31]} 38. Ke3 {[%emt 0:03:11]} Re1+ {[%emt 0:01:32]} 39. Kf3 {[%emt 0:00:36]} Rf1+ {[%emt 0:00:36]} 40. Ke3 {[%emt 0:02:01]} Re1+ {[%emt 0:00:05]} 41. Kd4 {[%emt 0:51:56]} Bb3 {[%emt 0:51:34]} 42. Re2 {[%emt 0:07:10]} Rf1 {[%emt 0:01:41]} 43. Ke3 {[%emt 0:01:15]} Bc4 {[%emt 0:00:39]} 44. Rf2 {[%emt 0:01:04]} Re1+ {[%emt 0:00:50]} 45. Kd2 {[%emt 0:01:06]} Rh1 {[%emt 0:00:55]} 46. Ke3 {[%emt 0:07:54]} Bf1 {[%emt 0:00:00]} 47. Bf3 {[%emt 0:00:00]} Rg1 {[%emt 0:00:00]} 48. Bg4 {[%emt 0:00:00]} Rh1 {[%emt 0:00:00]} 49. Bf3 {[%emt 0:00:00]} Rg1 {[%emt 0:00:00]} 50. Bg4 {[%emt 0:00:00]} 1/2-1/2